bitfinex/quotes_SOLUSD_20260309
["timestamp","ask_amount","ask_price","bid_price","bid_amount"]
[1773014402590,0.4577754,81.639,81.556,4.82477569]
[1773014402774,0.4577754,81.639,81.557,0.45689314]
[1773014402970,0.4577754,81.637,81.554,0.45226344]
[1773014403277,0.4577754,81.636,81.557,0.45226344]
[1773014403478,0.4577754,81.636,81.567,0.45226344]
[1773014405384,0.4577754,81.636,81.556,0.49201677]
[1773014405687,0.4577754,81.636,81.56,0.49201677]
[1773014405895,0.4577754,81.636,81.568,0.49201677]
[1773014406395,0.4577754,81.636,81.554,0.49201677]
[1773014406580,0.2,81.64,81.553,10.90349059]
[1773014406581,0.4577754,81.63,81.558,0.49201677]
[1773014408212,0.4577754,81.63,81.556,12.26151356]
[1773014408497,0.4577754,81.63,81.554,12.26181425]
[1773014408699,0.4577754,81.627,81.554,12.75383102]
[1773014408899,0.4577754,81.627,81.555,0.49201677]
[1773014409698,0.4577754,81.627,81.553,10.90349059]
[1773014410699,0.4577754,81.625,81.554,0.49201677]
[1773014410903,0.4577754,81.624,81.557,0.49201677]
[1773014411083,0.4577754,81.624,81.558,0.49201677]
[1773014411590,0.4577754,81.624,81.553,10.90349059]
[1773014411895,0.4577754,81.624,81.555,0.49201677]
[1773014412398,0.4577754,81.624,81.557,0.49201677]
[1773014412581,12.25040808,81.63,81.567,0.49201677]
[1773014412780,12.24919767,81.638,81.58,4.82477569]
[1773014412989,12.24919767,81.638,81.587,0.49201677]
[1773014413794,12.24919767,81.638,81.59,0.49201677]
[1773014414100,12.24919767,81.638,81.598,0.49201677]
[1773014414696,0.2,81.64,81.6,0.14216157]
[1773014414887,12.24904763,81.639,81.601,0.49201677]
[1773014415089,42.87166672,81.639,81.601,0.49201677]
[1773014415276,12.24904763,81.639,81.601,0.49201677]
[1773014415901,0.2,81.64,81.602,4.82477569]
[1773014416087,0.2,81.64,81.606,0.49201677]
[1773014416799,12.24702377,81.653,81.609,0.49201677]
[1773014417698,12.24702377,81.653,81.607,42.8884777]
[1773014417699,0.47777555,81.652,81.596,12.25550272]
[1773014417996,0.47777555,81.651,81.585,12.25701287]
[1773014418378,0.47777555,81.651,81.566,0.49201677]
[1773014419091,0.47777555,81.648,81.568,0.49201677]
[1773014419789,0.47777555,81.648,81.569,0.49201677]
[1773014420381,0.47777555,81.648,81.561,0.49201677]
[1773014420577,0.47777555,81.648,81.465,49.10066105]
[1773014420578,0.47777555,81.646,81.555,0.49201677]
[1773014421005,4.82477569,81.682,81.565,0.49201677]
[1773014421006,0.47777555,81.643,81.565,0.49201677]
[1773014423304,0.14216157,81.641,81.568,0.49201677]
[1773014423505,0.47777555,81.64,81.568,0.49201677]
[1773014425911,0.14216157,81.638,81.57,0.49201677]
[1773014426088,0.47777555,81.637,81.57,0.49201677]
[1773014427988,0.47777555,81.635,81.57,0.49201677]
[1773014428190,0.47777555,81.634,81.57,0.49201677]
[1773014429710,0.14216157,81.632,81.57,0.49201677]
[1773014430012,0.47777555,81.631,81.57,0.49201677]
[1773014430213,0.47777555,81.631,81.563,12.26040919]
[1773014430396,0.47777555,81.631,81.544,12.26321109]
[1773014430701,0.47777555,81.629,81.544,12.26321109]
[1773014431293,0.47777555,81.627,81.544,12.26321109]
[1773014431908,0.47777555,81.624,81.518,12.26722932]
[1773014432092,0.47777555,81.622,81.521,4.82477569]
[1773014432289,0.47777555,81.621,81.521,4.82477569]
[1773014432488,0.47777555,81.621,81.542,0.49201677]
[1773014432810,0.47777555,81.621,81.556,0.49201677]
[1773014433715,0.47777555,81.621,81.548,0.14216157]
[1773014433716,0.45860541,81.625,81.564,4.82477569]
[1773014434022,0.45860541,81.622,81.568,0.46189225]
[1773014436221,0.45860541,81.62,81.57,0.46189225]
[1773014436912,0.45860541,81.619,81.57,0.46189225]
[1773014437413,0.45860541,81.619,81.547,0.46189225]
[1773014438313,0.45860541,81.616,81.549,0.46189225]
[1773014440400,0.45860541,81.613,81.549,0.46189225]
[1773014440590,0.45860541,81.613,81.545,12.26306037]
[1773014441216,0.45860541,81.613,81.546,0.46189225]
[1773014441413,0.45860541,81.61,81.548,0.46189225]
[1773014443511,0.45860541,81.607,81.548,0.46189225]
[1773014443707,0.45860541,81.607,81.535,12.26459894]
[1773014443909,0.45860541,81.607,81.536,0.46189225]
[1773014444108,0.45860541,81.607,81.528,0.46189225]
[1773014445216,104.15517895,81.609,81.518,0.14216157]
[1773014445217,12.25355046,81.609,81.539,0.46189225]
[1773014445419,0.45860541,81.612,81.555,0.46189225]
[1773014445714,0.45860541,81.611,81.555,0.46189225]
[1773014446717,0.45860541,81.633,81.559,0.46189225]
[1773014446914,0.45860541,81.632,81.574,4.82477569]
[1773014447121,0.45860541,81.632,81.576,0.46189225]
[1773014447521,0.45860541,81.63,81.579,0.46189225]
[1773014448727,0.45860541,81.63,81.577,42.90424996]
[1773014448728,0.45860541,81.639,81.586,0.46189225]
[1773014449707,0.45860541,81.637,81.588,0.46189225]
[1773014450323,0.45860541,81.637,81.589,0.46189225]
[1773014451135,0.45860541,81.658,81.595,0.14216157]
[1773014451420,0.45860541,81.658,81.596,0.46189225]
[1773014451602,0.45860541,81.658,81.595,0.14216157]
[1773014451603,0.2,81.66,81.606,0.46189225]
[1773014451805,0.45860541,81.68,81.598,0.14216157]
[1773014451806,0.45860541,81.68,81.616,0.46189225]
[1773014452605,12.24395837,81.673,81.616,0.46189225]
[1773014453324,0.45860541,81.668,81.616,0.46189225]
[1773014453630,0.45860541,81.669,81.616,0.46189225]
[1773014453814,0.45860541,81.667,81.619,0.46189225]
[1773014455505,0.45860541,81.685,81.62,4.82477569]
[1773014455702,0.45860541,81.681,81.629,0.46189225]
[1773014455906,0.45860541,81.668,81.629,0.46189225]
[1773014456126,0.45860541,81.659,81.629,0.46189225]
[1773014456743,0.45860541,81.668,81.629,0.46189225]
[1773014457317,0.45860541,81.649,81.605,0.46189225]
[1773014457631,0.45860541,81.639,81.605,0.46189225]
[1773014458131,0.45860541,81.637,81.606,12.71589318]
[1773014458425,0.45860541,81.637,81.607,0.46189225]
[1773014460425,0.28432314,81.66,81.583,0.14216157]
[1773014460426,0.45860541,81.629,81.595,0.46189225]
[1773014460811,12.24949777,81.636,81.591,0.46189225]
[1773014461013,42.96114036,81.65,81.596,0.46189225]
[1773014461014,0.45860541,81.645,81.596,0.46189225]
[1773014461212,30.61451438,81.661,81.589,42.89781786]
[1773014461213,12.24694744,81.653,81.606,0.46189225]
[1773014461426,0.65860541,81.67,81.612,0.46189225]
[1773014461625,0.2,81.67,81.625,0.46189225]
[1773014461829,0.2,81.67,81.598,3.69383402]
[1773014461830,0.2,81.67,81.626,0.46189225]
[1773014462019,0.45860541,81.659,81.626,0.46189225]
[1773014462411,0.45860541,81.657,81.627,12.25084837]
[1773014462728,0.49511589,81.649,81.606,0.46189225]
[1773014462933,0.49511589,81.639,81.607,0.48455857]
[1773014463227,12.34230769,81.63,81.598,0.48455857]
[1773014463421,0.49511589,81.637,81.6,0.48455857]
[1773014463821,0.49511589,81.629,81.599,12.25505214]
[1773014464021,0.49511589,81.629,81.594,12.25573488]
[1773014464267,0.49511589,81.619,81.587,12.2567417]
[1773014464441,12.34230769,81.61,81.582,12.25760584]
[1773014464734,0.49511589,81.619,81.582,12.25760584]
[1773014464735,12.34230769,81.64,81.586,0.48455857]
[1773014464911,0.49511589,81.639,81.586,0.48455857]
[1773014465831,12.83742358,81.63,81.586,0.48455857]
[1773014466033,0.49511589,81.63,81.586,0.48455857]
[1773014466425,12.74416352,81.639,81.587,42.89899125]
[1773014466638,0.49511589,81.638,81.589,0.48455857]
[1773014467515,12.34230769,81.64,81.588,0.28432314]
[1773014467516,12.34230769,81.65,81.593,0.46679978]
[1773014468025,0.45514487,81.648,81.593,0.46679978]
[1773014468232,0.45514487,81.639,81.593,0.46679978]
[1773014468624,0.45514487,81.629,81.595,0.46679978]
[1773014468820,12.34230769,81.61,81.579,0.46679978]
[1773014469034,0.45514487,81.624,81.579,0.46679978]
[1773014469330,0.45514487,81.633,81.58,4.82477569]
[1773014469537,0.45514487,81.633,81.583,0.46679978]
[1773014469918,0.45514487,81.619,81.58,0.46679978]
[1773014470119,0.45514487,81.629,81.58,0.46679978]
[1773014470542,0.45514487,81.627,81.582,0.46679978]
[1773014472116,0.45514487,81.619,81.582,0.46679978]
[1773014472323,0.45514487,81.609,81.581,12.25775609]
[1773014472531,0.45514487,81.627,81.585,0.46679978]
[1773014472742,12.25099845,81.626,81.586,0.46679978]
[1773014472940,0.45514487,81.625,81.586,0.46679978]
[1773014473338,0.45514487,81.619,81.584,12.25730535]
[1773014473542,0.45514487,81.619,81.585,0.46679978]
[1773014474143,0.45514487,81.591,81.565,12.2601606]
[1773014474639,0.45514487,81.591,81.561,30.65182262]
[1773014474640,0.45514487,81.589,81.561,30.65182262]
[1773014474827,0.45514487,81.589,81.562,0.46679978]
[1773014475023,0.45514487,81.589,81.561,30.65182262]
[1773014475223,0.45514487,81.579,81.556,12.26151356]
[1773014475437,12.34230769,81.59,81.556,42.91529746]
[1773014475643,12.25511336,81.599,81.557,0.46679978]
[1773014476738,12.34230769,81.59,81.559,0.46679978]
[1773014477132,12.34230769,81.6,81.559,0.46679978]
[1773014477542,0.45514487,81.599,81.559,0.46679978]
[1773014477843,12.34230769,81.62,81.562,0.46679978]
[1773014478030,0.45514487,81.627,81.572,0.46679978]
[1773014478543,12.70462142,81.637,81.583,0.46679978]
[1773014478747,0.45514487,81.636,81.586,0.46679978]
[1773014479445,12.24947655,81.637,81.586,0.46679978]
[1773014479645,0.45514487,81.655,81.59,0.46679978]
[1773014479828,0.45514487,81.659,81.603,0.46679978]
[1773014480952,0.45514487,81.649,81.605,0.46679978]
[1773014481147,0.45514487,81.639,81.605,0.46679978]
[1773014482354,0.45514487,81.639,81.604,12.25430125]
[1773014482355,12.24454811,81.669,81.614,0.46679978]
[1773014482540,12.35316375,81.66,81.614,0.46679978]
[1773014483254,12.24604758,81.659,81.615,42.88427371]
[1773014483454,12.35316375,81.65,81.616,0.46679978]
[1773014484152,12.35316375,81.65,81.613,30.63201673]
[1773014484153,12.35316375,81.63,81.555,0.46679978]
[1773014484447,12.35316375,81.64,81.558,3.69383402]
[1773014484650,12.35316375,81.64,81.583,0.46679978]
[1773014485255,24.60067093,81.65,81.592,0.46679978]
[1773014485458,25.04017336,81.65,81.592,0.46679978]
[1773014485840,0.43950243,81.649,81.592,0.46679978]
[1773014486163,12.35316375,81.64,81.592,0.46679978]
[1773014486776,0.43950243,81.639,81.592,0.46679978]
[1773014487350,0.43950243,81.647,81.595,0.46679978]
[1773014487557,12.35316375,81.65,81.595,0.46679978]
[1773014487938,0.43950243,81.649,81.595,0.46679978]
[1773014488866,12.24789194,81.647,81.597,0.28432314]
[1773014489045,12.24789194,81.647,81.598,0.46679978]
[1773014489539,0.43950243,81.658,81.602,0.46679978]
[1773014489739,12.24657603,81.656,81.602,0.46679978]
[1773014490263,12.24657603,81.656,81.596,104.17177312]
[1773014490264,0.43950243,81.668,81.607,0.75112292]
[1773014490461,0.43950243,81.668,81.612,0.46679978]
[1773014491058,12.24516945,81.665,81.615,0.46679978]
[1773014491265,12.55316375,81.67,81.615,0.46679978]
[1773014491564,0.2,81.67,81.619,0.46679978]
[1773014491743,0.2,81.67,81.623,0.46679978]
[1773014492640,1e-08,81.67,81.625,4.82477569]
[1773014492959,12.35316376,81.67,81.634,0.49190799]
[1773014493160,1e-08,81.67,81.634,0.49190799]
[1773014495447,1e-08,81.67,81.636,0.49190799]
[1773014496547,1e-08,81.67,81.637,0.49190799]
[1773014496958,0.43950243,81.669,81.635,12.24964782]
[1773014497265,0.43950243,81.669,81.636,0.49190799]
[1773014497449,1e-08,81.67,81.636,0.49190799]
[1773014497767,1e-08,81.67,81.639,0.49190799]
[1773014498056,1e-08,81.67,81.637,12.24934772]
[1773014498057,0.43950243,81.669,81.637,12.24934772]
[1773014498246,0.43950243,81.669,81.638,0.49190799]
[1773014498448,0.43950243,81.659,81.628,12.25058078]
[1773014498648,0.43950243,81.667,81.629,0.49190799]
[1773014499452,12.35316375,81.66,81.629,0.49190799]
[1773014499651,12.24604758,81.659,81.629,0.49190799]
[1773014499855,12.24604758,81.659,81.63,12.25039813]
[1773014500057,12.24604758,81.659,81.63,12.74230612]
[1773014500251,0.43950243,81.66,81.631,0.49190799]
[1773014500547,0.43950243,81.669,81.631,0.49190799]
[1773014501055,1e-08,81.67,81.632,0.49190799]
[1773014501943,1e-08,81.67,81.634,0.49190799]
[1773014503448,1e-08,81.67,81.642,0.49190799]
[1773014504850,1e-08,81.67,81.644,0.49190799]
[1773014506846,1e-08,81.67,81.645,12.74005545]
[1773014507773,1e-08,81.67,81.646,0.49190799]
[1773014508753,0.43950243,81.695,81.647,0.49190799]
[1773014508963,0.43950243,81.704,81.652,0.49190799]
[1773014509472,0.43950243,81.699,81.652,0.49190799]
[1773014509683,0.43950243,81.709,81.652,0.49190799]
[1773014510174,0.43950243,81.709,81.654,0.28432314]
[1773014510376,0.43950243,81.708,81.663,0.49190799]
[1773014510556,12.35316375,81.72,81.663,0.49190799]
[1773014510756,0.43950243,81.721,81.663,0.49190799]
[1773014511073,12.35316375,81.72,81.666,0.49190799]
[1773014511451,24.59007026,81.72,81.666,0.49190799]
[1773014511780,0.43950243,81.719,81.666,0.49190799]
[1773014512755,0.43950243,81.709,81.666,0.49190799]
[1773014512956,0.43950243,81.708,81.668,0.49190799]
[1773014513367,0.43950243,81.708,81.668,0.28432314]
[1773014513563,0.43950243,81.708,81.669,0.49190799]
[1773014514080,0.43950243,81.699,81.667,12.24484798]
[1773014514672,0.43950243,81.689,81.667,12.24484798]
[1773014514977,0.43950243,81.687,81.657,30.61584801]
[1773014515762,0.43950243,81.669,81.621,0.49190799]
[1773014516078,0.43950243,81.669,81.623,0.49190799]
[1773014517373,12.24469804,81.668,81.625,0.49190799]
[1773014517561,0.43950243,81.667,81.625,0.49190799]
[1773014520272,0.43950243,81.695,81.632,0.49190799]
[1773014520477,0.43950243,81.699,81.632,0.49190799]
[1773014520673,12.35316375,81.756,81.647,0.49190799]
[1773014520674,0.43950243,81.708,81.647,0.49190799]
[1773014520874,0.43950243,81.708,81.646,3.69383402]
[1773014520875,0.43950243,81.708,81.652,0.49190799]
[1773014521667,0.43950243,81.699,81.652,0.49190799]
[1773014521867,0.43950243,81.679,81.628,0.49190799]
[1773014522283,0.43950243,81.679,81.618,3.69383402]
[1773014522284,0.43950243,81.679,81.632,0.49190799]
[1773014522586,0.43950243,81.679,81.633,0.49190799]
[1773014522965,0.43950243,81.669,81.633,0.49190799]
[1773014524770,0.43950243,81.667,81.634,12.24979787]
[1773014524980,0.43950243,81.667,81.634,12.70522387]
[1773014525463,0.43950243,81.667,81.635,0.455426]
[1773014525868,0.43950243,81.677,81.635,0.455426]
[1773014526091,12.24280441,81.681,81.635,0.455426]
[1773014526289,0.43950243,81.694,81.636,0.455426]
[1773014526790,0.43950243,81.694,81.618,3.69383402]
[1773014526791,0.43950243,81.694,81.646,0.46717026]
[1773014527697,0.43950243,81.692,81.646,0.46717026]
[1773014528190,0.43950243,81.679,81.646,0.46717026]
[1773014529294,0.43950243,81.679,81.647,43.3346363]
[1773014530293,12.35316375,81.68,81.647,43.3346363]
[1773014530294,0.43950243,81.669,81.647,12.24784744]
[1773014530680,0.43950243,81.669,81.642,12.24846925]
[1773014531382,0.43950243,81.669,81.643,0.46717026]
[1773014531582,12.35316375,81.68,81.643,0.46717026]
[1773014531583,0.43950243,81.677,81.643,0.46717026]
[1773014531892,12.68128426,81.688,81.643,0.46717026]
[1773014532095,0.43950243,81.687,81.643,0.46717026]
[1773014532501,0.43950243,81.679,81.642,12.24846925]
[1773014533081,0.43950243,81.669,81.642,12.24846925]
[1773014533385,0.43950243,81.667,81.635,12.24964782]
[1773014533780,0.43950243,81.659,81.635,12.24964782]
[1773014535690,0.43950243,81.658,81.628,30.62651345]
[1773014536684,12.35316375,81.64,81.598,42.89320816]
[1773014536998,12.35316375,81.63,81.6,0.46717026]
[1773014537788,12.35316375,81.63,81.584,0.28432314]
[1773014537789,0.43950243,81.637,81.602,0.46717026]
[1773014538986,12.35316375,81.64,81.602,0.46717026]
[1773014539188,12.68510013,81.662,81.603,0.46717026]
[1773014539404,12.35316375,81.66,81.603,0.46717026]
[1773014539609,36.77146534,81.722,81.606,0.46717026]
[1773014539788,0.43950243,81.703,81.62,4.82477569]
[1773014539994,0.43950243,81.703,81.642,0.46717026]
[1773014540214,0.43950243,81.724,81.646,5.29194595]
[1773014540388,0.43950243,81.724,81.645,0.14216157]
[1773014540389,0.43950243,81.724,81.666,4.82477569]
[1773014540595,12.43553354,81.73,81.672,0.46717026]
[1773014540796,12.43553354,81.73,81.67,0.28432314]
[1773014540797,0.2,81.74,81.676,3.69383402]
[1773014541109,0.2,81.74,81.692,0.46717026]
[1773014541301,0.43950243,81.739,81.692,0.46717026]
[1773014541509,0.2,81.74,81.692,0.46717026]
[1773014541686,0.2,81.74,81.694,0.46717026]
[1773014541889,12.51961545,81.74,81.694,0.46717026]
[1773014542109,0.43950243,81.739,81.694,0.46717026]
[1773014542803,0.43950243,81.729,81.694,0.46717026]
[1773014543310,12.75911788,81.72,81.693,12.24095087]
[1773014543508,12.75911788,81.72,81.688,12.70873909]
[1773014543509,0.43950243,81.719,81.688,12.70873909]
[1773014543808,0.43950243,81.729,81.689,0.46717026]
[1773014544812,0.43950243,81.728,81.69,12.24140041]
[1773014546493,12.31961545,81.72,81.69,12.24140041]
[1773014546806,12.75911788,81.72,81.69,12.24140041]
[1773014547010,0.43950243,81.718,81.684,12.2421775]
[1773014547209,0.43950243,81.709,81.684,12.2421775]
[1773014547408,0.43950243,81.709,81.671,0.46717026]
[1773014547409,0.43950243,81.709,81.672,12.24409834]
[1773014547613,0.43950243,81.689,81.665,12.24507216]
[1773014548116,12.31961545,81.7,81.666,0.46717026]
[1773014548414,0.43950243,81.705,81.666,0.46717026]
[1773014548588,12.31961545,81.7,81.666,0.46717026]
[1773014548796,12.75911788,81.69,81.655,0.46717026]
[1773014548995,12.68115379,81.689,81.656,12.2464975]
[1773014549827,0.43950243,81.688,81.656,12.2464975]
[1773014550006,12.31961545,81.68,81.656,12.2464975]
[1773014550195,0.43950243,81.679,81.652,12.24709033]
[1773014552213,12.2431989,81.678,81.652,12.24709033]
[1773014553410,0.43950243,81.689,81.653,0.45425792]
[1773014554813,12.24170012,81.688,81.653,0.45425792]
[1773014555513,12.31961545,81.71,81.655,0.45425792]
[1773014555820,12.23768488,81.715,81.656,0.45425792]
[1773014556019,12.31961545,81.71,81.656,0.45425792]
[1773014556225,12.23768488,81.715,81.656,0.45425792]
[1773014556401,0.43950243,81.709,81.656,0.45425792]
[1773014556601,0.43950243,81.699,81.656,0.45425792]
[1773014557722,12.24020171,81.698,81.658,0.45425792]
[1773014558426,12.23957666,81.703,81.659,0.45425792]
[1773014559013,0.43950243,81.727,81.662,4.82477569]
[1773014559217,12.31961545,81.72,81.664,0.45425792]
[1773014559722,0.43950243,81.709,81.667,0.45425792]
[1773014560022,0.43950243,81.699,81.665,12.24514786]
[1773014560521,0.43950243,81.699,81.665,12.69940578]
[1773014560822,42.82969688,81.719,81.66,12.24585895]
[1773014560823,0.43950243,81.689,81.66,12.24585895]
[1773014561127,0.43950243,81.689,81.661,0.45425792]
[1773014561598,12.24170012,81.688,81.662,12.2455977]
[1773014562209,12.68120255,81.688,81.662,12.2455977]
[1773014562625,0.43950243,81.687,81.651,12.70150535]
[1773014562919,0.43950243,81.687,81.64,61.24419164]
[1773014562920,12.31961545,81.67,81.646,12.24785416]
[1773014563122,12.31961545,81.66,81.635,12.24964782]
[1773014563309,0.43950243,81.662,81.635,12.24964782]
[1773014563626,12.31961545,81.67,81.636,0.45425792]
[1773014563927,0.43950243,81.659,81.627,12.25084837]
[1773014564304,0.43950243,81.659,81.628,0.45425792]
[1773014565013,0.43950243,81.649,81.626,15.59622061]
[1773014565720,42.85696793,81.667,81.626,27.84719386]
[1773014566023,12.31961545,81.65,81.626,27.84719386]
[1773014566221,12.31961545,81.66,81.627,0.45425792]
[1773014566424,12.31961545,81.67,81.627,0.45425792]
[1773014566723,12.31961545,81.68,81.628,0.45425792]
[1773014566924,12.75911788,81.69,81.628,0.45425792]
[1773014567228,0.43950243,81.689,81.628,0.45425792]
[1773014567722,0.43950243,81.689,81.632,0.45425792]
[1773014567922,12.24170012,81.688,81.634,0.45425792]
[1773014568235,0.43950243,81.687,81.634,0.45425792]
[1773014568402,0.43950243,81.679,81.634,0.45425792]
[1773014569817,0.43950243,81.689,81.635,42.87376737]
[1773014570029,0.43950243,81.689,81.637,0.45425792]
[1773014570539,12.24035154,81.697,81.637,0.45425792]
[1773014571035,0.43950243,81.696,81.637,0.45425792]
[1773014571335,12.75911788,81.69,81.637,0.45425792]
[1773014571540,0.43950243,81.689,81.637,0.45425792]
[1773014572335,12.24170012,81.688,81.639,0.28432314]
[1773014572537,12.24114996,81.692,81.643,0.45425792]
[1773014573223,0.43950243,81.691,81.643,0.45425792]
[1773014573423,12.31961545,81.69,81.643,0.45425792]
[1773014574828,0.43950243,81.689,81.646,0.45425792]
[1773014575137,12.31961545,81.68,81.646,0.45425792]
[1773014575634,0.43950243,81.688,81.646,0.45425792]
[1773014576212,12.31961545,81.67,81.637,12.24934772]
[1773014576419,0.43950243,81.659,81.627,0.45425792]
[1773014576736,0.43950243,81.639,81.605,0.45425792]
[1773014577530,0.43950243,81.639,81.609,12.25348689]
[1773014577916,0.43950243,81.639,81.609,12.70774481]
[1773014578133,0.43950243,81.639,81.61,0.45425792]
[1773014578833,12.24910645,81.639,81.612,0.45425792]
[1773014579536,12.24784744,81.647,81.612,0.45425792]
[1773014579735,12.31961545,81.64,81.612,0.45425792]
[1773014580427,12.24784744,81.647,81.612,0.45425792]
[1773014580624,0.43950243,81.648,81.612,0.45425792]
[1773014580934,12.24784744,81.647,81.614,0.45425792]
[1773014581135,12.31961545,81.64,81.614,0.45425792]
[1773014581738,12.68726653,81.648,81.614,0.45425792]
[1773014582522,12.2477641,81.648,81.614,0.45425792]
[1773014582818,12.31961545,81.65,81.616,0.45184862]
[1773014583019,12.24754742,81.649,81.616,0.45184862]
[1773014583230,12.31961545,81.64,81.616,0.45184862]
[1773014583942,0.43950243,81.639,81.596,31.09050185]
[1773014584152,12.31961545,81.62,81.597,12.25535252]
[1773014584624,42.86641599,81.649,81.572,0.45184862]
[1773014584625,0.43950243,81.609,81.572,0.45184862]
[1773014584829,12.25520233,81.598,81.564,12.71215954]
[1773014585145,12.69470476,81.598,81.565,0.45184862]
[1773014586935,12.69470476,81.598,81.564,42.91108822]
[1773014586936,12.69470476,81.598,81.567,0.46929544]
[1773014587138,12.25385077,81.607,81.567,0.46929544]
[1773014587340,0.43950243,81.599,81.567,0.46929544]
[1773014587540,0.43950243,81.589,81.56,12.26081094]
[1773014588049,0.43950243,81.589,81.546,30.65733491]
[1773014588050,0.43950243,81.569,81.541,12.73306458]
[1773014588218,0.43950243,81.589,81.543,0.46929544]
[1773014588427,12.31961545,81.58,81.543,0.46929544]
[1773014588619,12.31961545,81.57,81.543,0.46929544]
[1773014588823,0.43950243,81.579,81.545,0.46929544]
[1773014589025,12.25808951,81.579,81.545,0.46929544]
[1773014589337,12.31961545,81.57,81.545,0.46929544]
[1773014589843,12.69759194,81.579,81.545,0.46929544]
[1773014591430,12.25808951,81.579,81.547,0.46929544]
[1773014591628,12.31961545,81.58,81.547,0.46929544]
[1773014591829,12.25663543,81.589,81.547,0.46929544]
[1773014592134,12.31961545,81.58,81.547,0.46929544]
[1773014592347,12.25663543,81.589,81.547,0.46929544]
[1773014592531,12.31961545,81.58,81.547,0.46929544]
[1773014593033,12.31961545,81.6,81.547,0.46929544]
[1773014593545,12.25505214,81.599,81.549,0.46929544]
[1773014594644,0.43950243,81.598,81.549,0.46929544]
[1773014595341,12.25505214,81.599,81.551,42.91792865]
[1773014595518,12.31961545,81.61,81.553,0.46929544]
[1773014595723,0.43950243,81.614,81.553,0.46929544]
[1773014595922,12.31961545,81.62,81.552,0.28432314]
[1773014595923,12.31961545,81.62,81.562,4.82477569]
[1773014596120,12.31961545,81.62,81.564,0.46929544]
[1773014596644,12.68974157,81.632,81.572,0.46929544]
[1773014597237,0.43950243,81.65,81.59,0.75361858]
[1773014597445,0.43950243,81.649,81.594,0.46929544]
[1773014597832,0.43950243,81.647,81.594,0.46929544]
[1773014598446,0.43950243,81.639,81.594,0.46929544]
[1773014598638,42.86694101,81.648,81.593,12.25595332]
[1773014598639,0.43950243,81.629,81.593,12.25595332]
[1773014599447,12.25069828,81.628,81.593,0.46929544]
[1773014599643,0.43950243,81.637,81.593,0.46929544]
[1773014599945,12.75911788,81.63,81.593,0.46929544]
[1773014600341,0.43950243,81.63,81.593,0.46929544]
[1773014600532,12.31961545,81.63,81.593,0.46929544]
[1773014600731,0.43950243,81.629,81.593,0.46929544]
[1773014601241,12.31961545,81.66,81.593,0.46929544]
[1773014601242,12.31961545,81.64,81.593,0.46929544]
[1773014601444,0.43950243,81.627,81.579,0.46929544]
[1773014601752,24.57012003,81.63,81.579,0.46929544]
[1773014601943,12.31961545,81.63,81.579,0.46929544]
[1773014602142,12.31961545,81.64,81.581,0.28432314]
[1773014602340,12.31961545,81.64,81.582,0.46929544]
[1773014602341,12.24906083,81.639,81.582,0.46929544]
[1773014602532,0.43950243,81.638,81.582,0.46929544]
[1773014603757,0.43950243,81.629,81.584,0.46929544]
[1773014604551,12.24934772,81.637,81.584,0.46929544]
[1773014604854,12.24876075,81.641,81.584,0.46929544]
[1773014605051,0.43950243,81.639,81.584,0.46929544]
[1773014606055,12.24919767,81.638,81.587,0.46929544]
[1773014606461,12.6887001,81.638,81.587,0.46929544]
[1773014607154,0.43950243,81.638,81.587,0.46929544]
[1773014607353,0.43950243,81.656,81.594,0.46929544]
[1773014607535,0.43950243,81.653,81.594,0.46929544]
[1773014608341,12.24709743,81.652,81.597,0.46929544]
[1773014609130,12.35338655,81.65,81.597,0.46929544]
[1773014609557,0.43950243,81.649,81.597,0.46929544]
[1773014609760,0.43950243,81.639,81.597,0.46929544]
[1773014610137,12.79288898,81.65,81.597,0.46929544]
[1773014610332,12.24754742,81.649,81.6,0.46929544]
[1773014611457,12.24754742,81.649,81.603,0.46929544]
[1773014612559,0.28432314,81.67,81.606,0.46929544]
[1773014612560,12.35338655,81.67,81.606,0.46929544]
[1773014612741,0.43950243,81.669,81.606,0.46929544]
[1773014613758,0.43950243,81.669,81.605,0.28432314]
[1773014613759,0.43950243,81.679,81.618,0.47783714]
[1773014613958,0.43950243,81.679,81.622,0.47783714]
[1773014614661,12.35338655,81.68,81.618,0.28432314]
[1773014614662,0.43950243,81.677,81.624,0.47783714]
[1773014614864,12.35338655,81.67,81.624,0.47783714]
[1773014615058,0.43950243,81.677,81.624,0.47783714]
[1773014615965,0.43950243,81.677,81.624,0.28432314]
[1773014616267,0.43950243,81.686,81.633,0.47783714]
[1773014616557,0.43950243,81.686,81.636,0.47783714]
[1773014617259,12.24014256,81.699,81.639,5.30261283]
[1773014617461,12.24014256,81.699,81.642,0.47783714]
[1773014618258,12.67964499,81.699,81.642,0.47783714]
[1773014618464,12.67964499,81.699,81.644,0.47783714]
[1773014618964,0.43950243,81.72,81.647,4.17167116]
[1773014619163,4.89985912,81.838,81.66,0.47783714]
[1773014619164,12.23511757,81.732,81.66,0.47783714]
[1773014619367,12.23511757,81.732,81.644,1.50915288]
[1773014619368,1e-08,81.73,81.683,4.82477569]
[1773014619554,1e-08,81.73,81.682,0.47783714]
[1773014619555,1e-08,81.73,81.692,0.47783714]
[1773014620541,1e-08,81.73,81.694,0.47783714]